bitfinex-derivatives/quotes_ETHF0:USTF0_20250115
["timestamp","ask_amount","ask_price","bid_price","bid_amount"]
[1736953878645,3.2078,3339.2,3338.4,2.0969]
[1736953878845,3.2078,3339.2,3339.0,0.59899]
[1736953879144,3.2078,3339.6,3339.5,0.59892]
[1736953879343,3.8067,3339.6,3339.0,1.488]
[1736953879537,3.2078,3339.6,3339.3,0.59894]
[1736953879739,3.80671,3339.6,3339.4,41.39893]
[1736953880041,0.59892,3339.5,3339.4,40.8]
[1736953880344,3.2078,3339.6,3339.0,1.488]
[1736953880640,0.59898,3339.2,3339.1,40.8]
[1736953880941,0.59892,3339.5,3339.3,0.59894]
[1736953881132,2.58398,3339.8,3339.6,0.59888]
[1736953881330,2.58398,3339.8,3339.2,3.2078]
[1736953881331,1.9851,3339.8,3339.2,3.2078]
[1736953881534,1.9851,3339.8,3339.3,0.59894]
[1736953881535,0.59891,3339.6,3339.3,0.59894]
[1736953881846,0.59897,3339.3,3339.1,41.39898]
[1736953882041,3.2078,3339.6,3339.1,40.8]
[1736953882547,3.2078,3339.6,3339.0,1.488]
[1736953882843,3.2078,3339.2,3338.4,3.2078]
[1736953883043,0.5991,3338.5,3338.4,45.4958]
[1736953883544,3.2078,3338.6,3338.1,6.04212225]
[1736953883731,3.2078,3338.6,3338.1,4.55512225]
[1736953883935,3.2078,3338.6,3337.8,3.2078]
[1736953884138,0.59911,3338.5,3338.3,0.59912]
[1736953884336,0.5991,3338.5,3338.0,0.59919]
[1736953884535,3.2078,3338.6,3338.1,1.487]
[1736953884744,0.59912,3338.4,3338.2,0.59914]
[1736953884942,0.59915,3338.2,3338.1,1.487]
[1736953885139,3.2078,3338.6,3338.1,1.487]
[1736953885344,3.2078,3339.1,3339.0,0.59901]
[1736953885547,3.2078,3339.7,3338.9,1.487]
[1736953885844,3.2078,3339.7,3339.0,4.6948]
[1736953886036,0.59891,3339.6,3339.4,0.59893]
[1736953886236,3.2078,3339.7,3339.6,0.5989]
[1736953886431,0.5989,3339.6,3339.1,1.487]
[1736953886643,0.5989,3339.6,3339.5,0.59892]
[1736953887037,3.2078,3339.7,3339.1,1.487]
[1736953887238,3.8067,3339.7,3339.5,0.59891]
[1736953887445,3.2078,3340.1,3339.5,3.2078]
[1736953887646,0.59882,3340.1,3340.0,0.59883]
[1736953887846,5.17,3340.5,3339.5,3.2078]
[1736953888143,5.17,3340.5,3338.1,4.55512225]
[1736953888144,0.59899,3339.1,3339.0,2.086]
[1736953888446,1.49708,3340.0,3339.0,2.086]
[1736953888447,3.2078,3339.5,3339.4,0.59893]
[1736953888845,3.21569976,3340.0,3339.2,1.49739]
[1736953889145,3.45909,3340.5,3340.1,0.5988]
[1736953889146,0.59878,3340.3,3340.1,0.5988]
[1736953889334,1.9622,3340.5,3340.2,0.59878]
[1736953889335,0.59877,3340.4,3340.2,0.59878]
[1736953889540,4.70452,3340.8,3340.0,1.49707]
[1736953889541,3.2078,3340.8,3340.0,1.49707]
[1736953889736,3.2078,3340.8,3340.7,0.5987]
[1736953890143,3.44076,3341.4,3341.0,0.59863]
[1736953890144,0.59861,3341.2,3341.0,0.59863]
[1736953890437,1.9443,3341.4,3341.3,0.59859]
[1736953890837,1.9443,3341.4,3340.9,3.2078]
[1736953891049,1.9443,3341.4,3341.0,0.59865]
[1736953891242,1.9443,3341.4,3340.9,3.2078]
[1736953891243,1.9443,3341.4,3341.3,0.59859]
[1736953891544,6.38908461,3342.1,3341.0,1.49662]
[1736953891940,6.38908461,3342.1,3341.4,0.59858]
[1736953891941,0.59855,3341.6,3341.4,0.59858]
[1736953892141,3.2078,3341.7,3340.6,1.487]
[1736953892439,0.59857,3341.5,3340.7,1.49676]
[1736953892640,3.2078,3341.7,3340.9,3.2078]
[1736953893348,0.59865,3341.0,3340.9,3.2078]
[1736953893548,3.2078,3341.3,3340.8,1.486]
[1736953893749,0.59877,3340.3,3340.2,3.2078]
[1736953894648,0.59883,3340.0,3339.9,1.486]
[1736953894850,0.59882,3340.1,3339.9,2.08484]
[1736953895044,3.2078,3340.5,3340.0,3.2078]
[1736953895235,3.2078,3340.5,3340.0,1.486]
[1736953895548,3.2078,3340.5,3339.6,3.2078]
[1736953895549,6.38908461,3340.1,3338.8,1.486]
[1736953895848,6.38908461,3340.1,3339.3,0.59895]
[1736953895849,0.59893,3339.5,3339.3,0.59895]
[1736953896036,0.59901,3339.0,3338.8,42.88503]
[1736953896238,3.2078,3339.3,3338.8,1.486]
[1736953896643,0.59901,3339.0,3338.8,2.08503]
[1736953896950,0.59902,3338.9,3338.8,1.486]
[1736953897147,0.59901,3339.0,3338.8,1.486]
[1736953897450,0.59899,3339.1,3338.9,1.486]
[1736953897746,3.2078,3339.7,3338.9,1.486]
[1736953897747,6.41504323,3339.7,3338.9,1.486]
[1736953898152,3.2078,3339.7,3338.9,1.486]
[1736953898348,3.1419423,3339.6,3339.0,3.2078]
[1736953898648,3.2078,3339.7,3339.0,3.2078]
[1736953899148,2.0119,3340.0,3339.0,3.2078]
[1736953899349,4.1803,3340.3,3339.4,3.2078]
[1736953899655,0.9725,3340.3,3339.4,3.2078]
[1736953900549,3.2078,3340.2,3339.4,3.2078]
[1736953901549,3.2078,3340.2,3339.4,4.6938]
[1736953902144,0.9793,3340.9,3339.8,3.2078]
[1736953902145,3.2078,3340.6,3339.8,3.2078]
[1736953902544,3.2078,3340.6,3339.9,40.8]
[1736953904153,3.2078,3340.6,3340.0,1.486]
[1736953905249,3.2078,3340.6,3339.8,4.6938]
[1736953905843,3.2078,3340.6,3339.6,40.8]
[1736953905844,3.2078,3341.0,3340.0,3.2078]
[1736953906252,1.0145,3341.2,3340.0,3.2078]
[1736953906452,3.2078,3341.0,3340.0,3.2078]
[1736953906849,3.40445308,3340.9,3340.0,3.2078]
[1736953907048,3.2078,3341.0,3340.0,3.2078]
[1736953907450,3.2078,3341.0,3340.4,3.2078]
[1736953907858,3.2078,3341.1,3340.4,3.2078]
[1736953908855,3.2078,3341.6,3340.4,3.2078]
[1736953909358,3.2078,3341.1,3340.5,1.486]
[1736953909554,3.2078,3341.5,3340.5,1.486]
[1736953910057,3.2078,3341.1,3340.5,1.486]
[1736953910756,2.09528,3341.0,3340.5,1.486]
[1736953910953,0.59872,3340.6,3340.5,1.486]
[1736953911254,0.59881,3340.1,3340.0,3.2078]
[1736953911460,0.59888,3339.7,3339.6,1.486]
[1736953911757,1.49703,3340.1,3339.0,1.486]
[1736953911758,1.49726,3339.6,3339.0,1.486]
[1736953911956,0.599,3339.1,3339.0,1.486]
[1736953912751,0.59902,3338.9,3338.8,41.8014]
[1736953912951,0.59902,3338.9,3338.8,43.88444]
[1736953913464,1.49722,3339.7,3338.8,43.2854]
[1736953913752,1.49722,3339.7,3339.1,0.59897]
[1736953913958,0.59894,3339.4,3339.3,0.59894]
[1736953914260,0.59888,3339.8,3339.7,0.59888]
[1736953914456,0.9251,3340.3,3339.6,3.2078]
[1736953914652,1.49698,3340.2,3339.6,3.2078]
[1736953914958,0.59888,3339.8,3339.6,3.8067]
[1736953915158,0.9251,3340.3,3339.6,3.2078]
[1736953915452,0.59879,3340.2,3339.7,0.59887]
[1736953915653,0.59885,3339.9,3339.7,0.59887]
[1736953915850,0.9251,3340.3,3339.6,3.2078]
[1736953916054,0.59885,3339.9,3339.7,0.59887]
[1736953916256,0.9251,3340.3,3339.7,1.485]
[1736953916257,0.59886,3339.8,3339.7,1.485]
[1736953916957,0.59886,3339.8,3339.3,1.485]
[1736953916958,0.59893,3339.4,3339.3,1.485]
[1736953917263,3.2078,3339.9,3339.0,1.485]
[1736953917264,0.59899,3339.1,3339.0,1.485]
[1736953918369,0.59895,3339.3,3338.8,42.88403]
[1736953918554,0.59902,3338.9,3338.8,42.88403]
[1736953918752,2.46571,3339.7,3338.8,42.285]
[1736953918962,0.59898,3339.2,3338.9,1.485]
[1736953919263,0.59901,3339.0,3338.9,1.485]
[1736953919965,0.599,3339.1,3339.0,0.599]
[1736953920158,0.59901,3339.0,3338.9,2.08402]
[1736953920561,1.49725,3339.6,3338.9,1.485]
[1736953920760,0.59893,3339.5,3339.4,0.59893]
[1736953920963,0.59893,3339.5,3338.9,1.485]
[1736953920964,0.59885,3339.9,3339.8,0.59886]
[1736953921161,1.8838,3340.3,3339.7,3.2078]
[1736953921363,0.59886,3339.9,3339.8,0.59886]
[1736953921563,0.59886,3339.8,3339.7,5.29167]
[1736953921862,1.8838,3340.3,3339.7,45.4928]
[1736953922063,3.2078,3340.0,3339.1,3.2078]
[1736953922253,0.59899,3339.2,3338.7,3.2078]
[1736953922455,0.59908,3338.6,3338.5,2.08409]
[1736953922659,3.18128461,3339.4,3338.5,1.485]
[1736953922960,0.9929,3339.5,3338.5,1.485]
[1736953923162,0.59908,3338.6,3338.5,2.08409]
[1736953923467,0.59908,3338.7,3338.6,0.59907]
[1736953923766,0.59907,3338.7,3338.6,0.59907]
[1736953923967,1.49743,3339.2,3338.5,1.485]
[1736953924157,0.59908,3338.6,3338.5,1.485]
[1736953924361,3.2078,3338.9,3338.2,3.2078]
[1736953924668,0.59919,3338.0,3337.9,1.485]
[1736953924869,3.2078,3338.4,3337.9,1.485]
[1736953925164,0.59919,3338.0,3337.9,2.08419]
[1736953925372,3.80692,3338.4,3338.3,0.59913]
[1736953925662,0.59909,3338.6,3338.4,0.5991]
[1736953925858,3.16205025,3339.1,3338.4,3.2078]
[1736953926167,0.59905,3338.8,3338.7,0.59905]
[1736953926359,0.59905,3338.8,3338.4,3.2078]
[1736953926360,0.59903,3338.9,3338.4,4.70558]
[1736953926662,0.9929,3339.5,3339.0,0.59901]
[1736953926864,0.9929,3339.5,3338.5,1.485]
[1736953927161,0.9929,3339.5,3339.0,0.599]
[1736953927367,0.9929,3339.5,3338.5,1.485]
[1736953927554,0.9929,3339.5,3339.0,0.59901]
[1736953927758,3.18128461,3339.4,3338.4,3.2078]
[1736953927959,0.59905,3338.8,3338.7,0.59905]
[1736953928257,3.18128461,3339.9,3338.4,3.2078]
[1736953928562,0.59888,3339.8,3339.7,0.59887]
[1736953928764,5.1197,3340.0,3339.6,1.485]
[1736953928960,0.59888,3339.7,3339.6,2.08389]
[1736953929266,0.59888,3339.7,3339.6,2.0839]
[1736953929462,0.59887,3339.8,3339.7,0.59887]
[1736953929965,0.59888,3339.7,3339.6,2.08389]
[1736953930166,0.59888,3339.7,3339.6,1.485]
[1736953930862,3.17707582,3339.9,3339.8,0.59886]
[1736953931462,4.70456,3340.8,3340.3,0.59877]
[1736953931666,4.70456,3340.8,3340.1,3.2078]
[1736953931667,1.49676,3340.7,3340.1,3.2078]
[1736953931865,0.59879,3340.2,3340.1,4.6928]
[1736953932072,1.49705,3340.1,3339.5,1.485]
[1736953932363,0.59892,3339.5,3339.4,3.2078]
[1736953932764,1.49705,3340.1,3339.4,44.0078]
[1736953932969,0.59889,3339.7,3339.6,0.59889]
[1736953933161,0.59892,3339.6,3339.5,0.59891]
[1736953933363,0.59885,3339.9,3339.8,0.59886]
[1736953933569,1.0043,3340.5,3339.4,4.6928]
[1736953933570,4.2121,3340.5,3339.5,42.2973]
[1736953933772,6.59499461,3340.9,3339.9,3.2078]
[1736953933773,3.27910574,3340.7,3339.9,3.2078]
[1736953933970,5.1248,3340.9,3340.6,0.59872]
[1736953934176,0.59872,3340.6,3340.5,1.485]
[1736953935070,0.59871,3340.7,3340.6,0.59872]
[1736953935267,1.917,3340.9,3340.5,1.485]
[1736953935466,3.2078,3341.3,3340.5,1.485]
[1736953935668,3.2078,3341.3,3340.8,3.2078]
[1736953935867,3.2078,3341.3,3340.5,1.485]
[1736953935868,0.59871,3340.7,3340.5,2.08372]
[1736953936175,0.59866,3341.0,3340.8,0.59867]
[1736953936567,3.2078,3341.3,3340.5,4.6928]
[1736953936871,3.2078,3341.3,3340.5,6.18964]
[1736953937067,3.2078,3341.3,3340.5,4.6928]
[1736953937264,0.98,3341.6,3340.5,6.18964]
[1736953937467,0.59857,3341.5,3341.4,0.59858]
[1736953937664,0.59857,3341.5,3341.3,0.59858]
[1736953937866,0.59855,3341.6,3341.4,0.59858]
[1736953938073,3.18128461,3341.9,3340.9,3.2078]
[1736953938275,3.18128461,3341.9,3340.5,1.485]
[1736953938276,3.2078,3342.1,3341.7,0.59852]
[1736953938475,0.5985,3341.9,3341.3,4.6928]
[1736953938672,3.80626,3342.1,3341.9,0.59847]
[1736953938873,3.2078,3342.1,3342.0,0.59847]
[1736953939072,3.2078,3342.1,3341.5,40.8]
[1736953939270,3.80625,3342.1,3341.9,0.59848]
[1736953939470,3.2078,3342.1,3341.7,0.59851]
[1736953939771,3.2078,3342.1,3341.8,0.5985]
[1736953939772,0.59847,3342.0,3341.8,0.5985]
[1736953939967,3.2078,3342.1,3342.0,0.59847]
[1736953940170,3.2078,3342.1,3341.5,40.8]
[1736953940369,0.59844,3342.2,3342.0,0.59846]
[1736953940771,0.59846,3342.1,3341.9,0.59849]
[1736953941073,0.59845,3342.1,3341.5,40.8]
[1736953941273,0.59845,3342.1,3341.9,0.59848]
[1736953941573,0.59847,3342.0,3341.8,0.5985]
[1736953941968,0.59853,3341.7,3341.5,0.59855]
[1736953942175,0.59858,3341.4,3341.3,3.2078]
[1736953942478,3.15861457,3341.9,3341.8,0.5985]
[1736953942776,0.5985,3341.8,3341.7,3.80632]
[1736953942969,3.2078,3342.1,3341.3,3.2078]
[1736953943272,0.59858,3341.5,3341.3,3.80639]
[1736953943575,0.59858,3341.4,3341.3,3.2078]
[1736953944274,0.59857,3341.5,3341.4,0.59857]
[1736953944477,0.59858,3341.4,3341.3,3.2078]
[1736953945174,0.59867,3340.9,3340.8,1.482]
[1736953945380,0.59874,3340.5,3340.4,1.21606629]
[1736953945577,0.59873,3340.6,3340.3,3.2078]
[1736953945878,0.59873,3340.6,3340.5,0.59874]
[1736953946273,0.5987,3340.7,3340.6,0.59871]
[1736953946469,6.38908461,3341.4,3340.3,4.6898]
[1736953946775,0.5987,3340.8,3340.6,0.59871]
[1736953946977,1.49655,3341.2,3340.3,4.6898]
[1736953947178,0.59876,3340.4,3340.3,4.6898]
[1736953947480,3.46746232,3341.1,3340.6,0.59872]
[1736953947779,1.49658,3341.2,3340.5,0.59874]
[1736953947972,0.59872,3340.6,3340.5,0.59874]
[1736953948170,3.18827131,3341.1,3340.3,4.6898]
[1736953948477,0.59873,3340.6,3340.4,0.59876]
[1736953948778,0.59875,3340.5,3340.4,1.482]
[1736953948974,0.59876,3340.4,3340.3,3.2078]
[1736953949877,3.80656,3340.4,3339.6,3.2078]
[1736953950074,0.59885,3339.9,3339.8,0.59885]
[1736953950474,0.5988,3340.2,3340.1,0.59881]
[1736953950676,0.59878,3340.3,3340.2,0.59878]
[1736953950868,3.2078,3340.4,3339.8,1.49717]
[1736953951076,3.2078,3340.4,3339.7,1.482]
[1736953951275,0.59886,3339.8,3339.7,2.08088]
[1736953951766,0.59883,3340.0,3339.9,0.59884]
[1736953952173,3.2078,3340.4,3339.7,1.482]
[1736953952379,0.59877,3340.3,3340.2,0.59878]
[1736953952682,1.915,3340.7,3340.0,3.2078]
[1736953952971,0.59877,3340.4,3340.3,0.59876]
[1736953953172,0.9613,3340.8,3340.7,0.5987]
[1736953953379,0.9613,3340.8,3340.0,3.2078]
[1736953953380,7.09153723,3341.4,3340.4,3.2078]
[1736953953580,1.9456,3341.4,3340.8,3.2078]
[1736953953778,0.9891,3341.4,3341.3,3.80639]
[1736953954077,8.03781831,3341.8,3341.7,0.59852]
[1736953954276,8.03781831,3341.8,3341.7,3.80632]
[1736953954677,0.59836,3342.6,3342.1,0.59844]
[1736953954975,1.49591,3342.6,3341.7,44.0078]
[1736953955182,0.59843,3342.2,3342.1,3.2078]
[1736953955488,3.11972885,3342.6,3342.1,3.80624]
[1736953955672,0.59843,3342.2,3342.1,3.2078]
[1736953956783,3.96908567,3342.2,3342.1,3.2078]
[1736953956980,0.59843,3342.2,3342.1,3.2078]
[1736953957179,0.59843,3342.2,3342.1,1.6859]
[1736953957483,0.59853,3341.7,3341.6,0.59853]
[1736953957683,0.59848,3342.0,3341.8,0.5985]
[1736953957882,3.2078,3342.2,3341.7,3.2078]
[1736953958082,3.2078,3342.2,3341.9,0.59849]
[1736953958083,0.59848,3342.0,3341.9,0.59849]
[1736953958283,3.2078,3342.2,3341.8,0.5985]
[1736953958486,3.2078,3342.2,3341.4,40.8]
[1736953958779,0.59849,3341.9,3341.4,40.8]
[1736953958972,3.2078,3342.2,3341.9,0.59848]
[1736953958973,0.59845,3342.1,3341.9,0.59848]
[1736953959177,3.80624,3342.2,3342.0,0.59845]
[1736953959380,0.59838,3342.5,3342.3,0.5984]
[1736953959689,0.9891,3342.7,3342.5,0.59838]
[1736953959982,0.9891,3342.7,3342.6,0.59836]
[1736953960175,0.59836,3342.6,3342.5,0.59837]
[1736953960481,0.9891,3342.7,3342.6,0.59836]
[1736953960986,1.58744,3342.7,3342.6,0.59836]
[1736953961185,0.9891,3342.7,3342.5,3.2078]
[1736953961381,0.9891,3342.7,3342.4,0.59839]
[1736953961580,0.5984,3342.4,3342.3,1.482]
[1736953962086,1.58745,3342.7,3342.5,0.59837]
[1736953962284,1.58745,3342.7,3342.6,0.59836]
[1736953962285,0.9891,3342.7,3342.6,0.59836]
[1736953962582,3.2078,3343.6,3342.6,2.92723723]
[1736953962780,4.1713,3344.2,3343.0,2.92723723]
[1736953962980,0.59818,3343.6,3343.1,1.482]
[1736953963187,7.3239321,3344.2,3343.1,1.482]
[1736953963188,0.59818,3343.7,3343.1,1.482]
[1736953963386,0.59819,3343.6,3343.3,0.59823]
[1736953963689,0.59814,3343.9,3343.5,0.5982]
[1736953963886,0.59814,3343.9,3343.4,3.2078]
[1736953963887,0.59816,3343.8,3343.3,0.59824]
[1736953964084,0.59817,3343.7,3343.4,0.59821]
[1736953964285,0.59817,3343.7,3343.5,0.5982]
[1736953964587,4.1713,3344.2,3343.2,40.8]
[1736953964778,0.59821,3343.5,3343.2,41.39824]
[1736953964975,7.6364622,3344.1,3343.2,40.8]
[1736953965183,0.59821,3343.5,3343.2,41.39825]
[1736953965382,0.59822,3343.4,3343.1,1.482]
[1736953965582,3.2078,3343.6,3343.0,3.2078]
[1736953965783,0.59821,3343.5,3343.2,0.59825]
[1736953965989,3.2078,3343.6,3343.1,1.482]
[1736953966293,0.59825,3343.3,3343.1,1.482]
[1736953966482,3.2078,3343.6,3343.1,1.482]
[1736953966684,3.80599,3343.6,3343.3,0.59823]
[1736953966985,3.80599,3343.6,3343.1,1.482]
[1736953967180,3.2078,3344.0,3343.1,1.482]
[1736953967688,0.59817,3343.7,3343.5,0.59819]
[1736953967888,0.59816,3343.8,3343.1,1.482]
[1736953968092,0.59821,3343.5,3343.1,1.482]
[1736953968391,2.92723723,3343.7,3343.0,3.2078]
[1736953968592,3.2078,3343.6,3343.0,3.2078]
[1736953968996,0.59827,3343.1,3343.0,3.2078]
[1736953969184,0.59827,3343.1,3342.4,1.482]
[1736953969185,3.2078,3343.1,3342.4,1.482]
[1736953969390,3.2078,3343.1,3342.1,3.2078]
[1736953969391,2.92723723,3342.9,3342.1,4.6898]
[1736953969693,2.92723723,3342.9,3341.8,1.9871]
[1736953969694,9.12698723,3342.5,3341.2,1.482]
[1736953969882,0.59859,3341.3,3341.2,1.482]
[1736953970082,3.52582723,3341.3,3341.2,1.482]
[1736953970294,3.52582723,3341.3,3340.3,4.55512225]
[1736953970295,0.59876,3340.4,3340.3,4.55512225]
[1736953970689,0.59879,3340.2,3340.1,1.482]
[1736953970890,3.80659,3340.2,3340.1,1.482]
[1736953971293,3.2078,3340.2,3339.4,2.08092]
[1736953971592,0.59893,3339.4,3339.3,3.2078]
[1736953971789,3.2078,3339.8,3339.3,3.2078]
[1736953972089,0.59893,3339.4,3339.3,3.2078]
[1736953972291,3.2078,3339.4,3338.8,1.48]
[1736953972596,3.2078,3338.9,3338.5,1.48]
[1736953972795,3.2078,3338.9,3338.6,0.59907]
[1736953972796,3.80683,3338.9,3338.6,0.59907]
[1736953973088,0.59908,3338.6,3338.4,3.2078]
[1736953973497,0.59908,3338.7,3338.4,3.2078]
[1736953973691,3.2078,3338.9,3338.4,3.2078]
[1736953973989,0.59908,3338.7,3338.4,3.2078]
[1736953974194,0.59904,3338.8,3338.4,3.2078]
[1736953974393,0.59909,3338.6,3338.4,3.2078]
[1736953974693,3.2078,3338.9,3338.4,3.2078]
[1736953974995,0.59909,3338.6,3338.4,3.2078]
[1736953975587,0.59906,3338.7,3338.4,3.2078]
[1736953975795,0.59909,3338.6,3338.4,3.2078]
[1736953975988,3.2078,3338.9,3338.4,3.2078]
[1736953976696,3.2078,3338.5,3338.3,1.481]
[1736953977383,3.8069,3338.5,3338.3,1.481]
[1736953977697,0.5992,3337.9,3337.4,1.52219]
[1736953977891,0.5992,3337.9,3337.5,1.481]
[1736953978199,3.2078,3338.0,3337.2,3.45356104]
[1736953978389,0.59931,3337.4,3337.2,4.6888]
[1736953978590,0.59938,3336.9,3336.8,4.1282]
[1736953978895,0.59938,3336.9,3336.7,42.281]
[1736953979203,0.59933,3337.3,3336.8,0.5994]
[1736953979392,3.2078,3337.6,3336.7,42.281]
[1736953979589,3.31103656,3337.7,3337.0,3.2078]
[1736953979793,3.2078,3338.0,3337.3,0.5993]
[1736953979996,3.2078,3338.0,3337.0,3.2078]
[1736953980294,4.1508,3338.5,3337.0,3.2078]
[1736953980507,0.59918,3338.1,3337.6,0.59925]
[1736953980696,0.59923,3337.8,3337.7,1.481]
[1736953980893,3.43465019,3338.0,3337.7,1.481]
[1736953981203,0.59919,3338.0,3337.7,1.481]
[1736953981391,3.2078,3338.1,3337.7,1.481]
[1736953981895,3.80698,3338.1,3337.7,1.481]
[1736953982100,3.2078,3338.1,3337.8,0.59921]
[1736953982299,3.2078,3338.1,3337.7,1.481]
[1736953982600,3.18327485,3339.2,3337.7,1.481]
[1736953982601,3.2078,3338.6,3337.9,44.0078]
[1736953982803,0.9478,3339.5,3338.3,3.2078]
[1736953983109,3.2078,3339.6,3338.8,3.2078]
[1736953983396,3.2078,3339.6,3339.0,0.599]
[1736953983600,0.59893,3339.5,3339.0,0.599]
[1736953983794,3.2078,3339.6,3339.0,0.599]
[1736953983998,3.2078,3339.6,3338.4,4.123]
[1736953984201,0.59898,3339.2,3338.7,0.59905]
[1736953984401,3.2078,3339.6,3338.5,1.481]
[1736953984600,0.59895,3339.4,3338.9,0.59901]
[1736953984997,0.59895,3339.4,3339.0,0.599]
[1736953985502,3.2078,3339.6,3339.5,0.59892]
[1736953985695,3.8066,3340.2,3339.8,0.59885]
[1736953985897,3.8066,3340.2,3339.5,1.481]
[1736953985898,3.2078,3340.2,3339.5,1.481]
[1736953986094,0.9418,3340.8,3340.3,0.59876]
[1736953986095,3.32391876,3340.4,3340.3,0.59876]
[1736953986302,3.2078,3341.0,3340.4,0.59874]
[1736953986503,3.2078,3341.0,3340.3,1.481]
[1736953986702,0.59868,3340.9,3340.5,0.59873]
[1736953986896,3.2078,3341.0,3340.4,0.59874]
[1736953987206,3.2078,3340.6,3339.7,3.2078]
[1736953987393,0.59875,3340.5,3339.8,0.59886]
[1736953987594,3.2078,3340.6,3339.7,3.2078]
[1736953987896,2.4381,3341.8,3340.5,3.2078]
[1736953987897,3.2078,3341.0,3340.5,3.2078]
[1736953988204,0.59868,3340.9,3340.6,1.481]
[1736953988405,3.2078,3341.0,3340.6,1.481]
[1736953988697,3.2078,3341.5,3340.6,1.481]
[1736953988897,0.59851,3341.8,3341.4,0.59858]
[1736953989098,3.2078,3341.9,3341.2,3.2078]
[1736953989292,3.2078,3341.9,3340.8,3.2078]
[1736953989499,3.2078,3341.5,3340.8,3.2078]
[1736953989700,3.23766526,3341.8,3341.2,3.2078]
[1736953990004,6.44546526,3341.9,3340.8,3.2078]
[1736953990204,0.59865,3341.1,3340.8,3.2078]
[1736953990404,1.49631,3341.7,3340.8,3.2078]
[1736953990608,1.49631,3341.7,3340.8,3.80648]
[1736953990906,0.59856,3341.5,3340.8,3.2078]
[1736953991113,0.59867,3340.9,3340.8,3.2078]
[1736953991701,0.59866,3341.0,3340.8,3.2078]
[1736953991896,6.39107485,3341.5,3340.8,3.2078]
[1736953991897,3.2078,3341.5,3340.8,3.2078]
[1736953992100,3.43387912,3341.4,3340.8,3.2078]
[1736953992301,0.59859,3341.4,3341.1,0.59862]
[1736953992503,3.2078,3341.5,3340.8,3.80647]
[1736953992698,3.2078,3341.5,3340.8,3.2078]
[1736953992898,3.2433985,3341.4,3340.1,13.9918]
[1736953993108,3.2078,3341.1,3340.1,15.4728]
[1736953993406,4.2488985,3341.4,3340.1,15.4728]
[1736953993407,0.59866,3341.0,3340.7,0.59869]
[1736953993611,1.0055,3341.4,3340.1,15.4728]
[1736953993804,0.59863,3341.1,3340.8,0.59868]
[1736953994012,0.59876,3340.4,3340.1,16.0716]
[1736953994306,3.12241166,3341.0,3340.1,14.5906]
[1736953994505,0.59876,3340.4,3340.1,15.4728]
[1736953994706,0.59875,3340.5,3340.1,15.4728]
[1736953995009,3.2078,3340.6,3340.1,12.265]
[1736953995508,0.59878,3340.3,3340.1,12.265]
[1736953995813,3.2078,3340.6,3340.1,15.4728]
[1736953996014,3.80644,3341.1,3340.8,0.59868]
[1736953996208,0.59871,3340.7,3340.4,0.59875]
[1736953996409,3.2078,3341.0,3340.1,13.9918]
[1736953996410,0.59872,3340.6,3340.5,1.481]
[1736953996711,3.38902629,3340.6,3340.1,13.9918]
[1736953996911,0.59879,3340.2,3340.1,3.2078]
[1736953997305,4.67996485,3340.9,3340.1,3.2078]
[1736953997624,4.76143456,3340.8,3340.1,3.2078]
[1736953997916,3.2078,3340.4,3339.6,1.481]
[1736953998119,0.59885,3339.9,3339.7,0.59887]
[1736953998321,3.20447375,3340.3,3339.8,3.2078]
[1736953998518,3.2078,3340.4,3339.8,3.2078]
[1736953998826,3.2078,3340.4,3340.3,0.59877]
[1736953999117,3.2078,3340.4,3340.3,41.39877]
[1736953999725,0.5986,3341.3,3340.4,1.4969]
[1736954000015,0.59858,3341.4,3341.2,0.59861]
[1736954000222,0.59857,3341.5,3341.2,0.59861]
[1736954000417,3.2078,3341.6,3340.7,3.2078]
[1736954000724,0.59872,3340.7,3340.5,1.481]
[1736954001021,0.59871,3340.7,3340.5,1.481]
[1736954001223,0.59871,3340.7,3340.5,2.07974]
[1736954001721,3.2078,3341.0,3340.5,1.481]
[1736954002123,3.33738011,3340.9,3340.6,0.59872]
[1736954002319,0.59872,3340.6,3340.5,1.481]
[1736954002520,3.33738011,3340.9,3340.5,1.481]
[1736954002718,0.59872,3340.6,3340.5,1.481]
[1736954002924,3.2078,3341.0,3339.9,4.151]
[1736954002925,0.5988,3340.2,3339.9,4.151]
[1736954003119,7.58195655,3340.9,3339.9,4.151]
[1736954003418,0.59881,3340.1,3339.9,4.74984]
[1736954003626,0.59883,3340.0,3339.9,3.2078]
[1736954003921,0.59882,3340.1,3339.9,0.59884]
[1736954004229,0.5988,3340.2,3340.0,0.59882]
[1736954004423,0.5988,3340.2,3339.7,1.479]
[1736954004424,3.1505064,3340.5,3339.7,1.479]
[1736954004619,3.7493164,3340.1,3339.9,0.59884]
[1736954004816,3.7493164,3340.1,3340.0,0.59883]
[1736954004817,3.1505064,3340.1,3340.0,0.59883]
[1736954005319,0.59875,3340.5,3340.3,0.59876]
[1736954005517,0.59878,3340.3,3340.1,0.5988]
[1736954005717,0.5988,3340.2,3340.0,0.59882]
[1736954005918,0.59883,3340.0,3339.9,0.59885]
[1736954006119,3.2078,3340.6,3339.7,1.479]
[1736954006520,3.27978484,3340.5,3339.7,1.479]
[1736954006921,3.27978484,3340.5,3340.2,0.59878]